fUSD/lending_fUSD_20250123
["ID","MTS","AMOUNT","RATE_DAILY","PERIOD"]
[350076025,1737600656657,-500.0,0.0002,2]
[350076026,1737600656667,-500.0,0.0002,2]
[350076027,1737600656676,-500.0,0.0002,2]
[350076028,1737600656686,-518.68439766,0.0002,2]
[350076029,1737600656695,-349.23951969,0.0002,2]
[350076030,1737600656705,-500.0,0.0002,2]
[350076031,1737600656714,-217.85395789,0.0002,2]
[350076032,1737600656725,-500.0,0.0002,2]
[350076033,1737600656734,-500.0,0.0002,2]
[350076034,1737600656744,-510.87856214,0.0002,2]
[350076035,1737600656753,-500.0,0.0002,2]
[350076036,1737600656761,-533.01,0.0002,2]
[350076037,1737600656771,-500.0,0.0002,2]
[350076038,1737600656780,-500.0,0.0002,2]
[350076039,1737600656790,-500.0,0.0002,2]
[350076040,1737600656800,-500.0,0.0002,2]
[350076041,1737600656809,-500.0,0.0002,2]
[350076042,1737600656818,-500.0,0.0002,2]
[350076043,1737600656827,-500.0,0.0002,2]
[350076044,1737600656836,-500.0,0.0002,2]
[350076045,1737600656846,-500.0,0.0002,2]
[350076046,1737600656855,-577.09,0.0002,2]
[350076047,1737600656864,-500.0,0.0002,2]
[350076048,1737600656873,-503.7,0.0002,2]
[350076049,1737600656882,-500.0,0.0002,2]
[350076050,1737600656891,-500.0,0.0002,2]
[350076051,1737600656900,-500.0,0.0002,2]
[350076052,1737600656910,-531.35,0.0002,2]
[350076053,1737600656919,-500.0,0.0002,2]
[350076054,1737600656929,-659.11,0.0002,2]
[350076055,1737600656939,-500.0,0.0002,2]
[350076056,1737600656948,-500.0,0.0002,2]
[350076057,1737600656957,-500.0,0.0002,2]
[350076058,1737600656967,-515.58931405,0.0002,2]
[350076059,1737600656976,-500.0,0.0002,2]
[350076060,1737600656986,-500.0,0.0002,2]
[350076061,1737600656995,-500.0,0.0002,2]
[350076062,1737600657005,-500.0,0.0002,2]
[350076063,1737600657014,-500.0,0.0002,2]
[350076064,1737600657023,-500.0,0.0002,2]
[350076065,1737600657032,-500.0,0.0002,2]
[350076066,1737600657042,-586.25,0.0002,2]
[350076067,1737600657053,-500.0,0.0002,2]
[350076068,1737600657063,-500.0,0.0002,2]
[350076069,1737600657074,-500.0,0.0002,2]
[350076070,1737600657085,-500.0,0.0002,2]
[350076071,1737600657095,-500.0,0.0002,2]
[350076072,1737600657106,-586.87167668,0.0002,2]
[350076073,1737600657115,-500.0,0.0002,2]
[350076074,1737600657125,-500.0,0.0002,2]
[350076075,1737600657135,-500.0,0.0002,2]
[350076076,1737600657145,-500.0,0.0002,2]
[350076077,1737600657155,-500.0,0.0002,2]
[350076078,1737600657167,-500.0,0.0002,2]
[350076079,1737600657175,-638.93,0.0002,2]
[350076080,1737600657185,-500.0,0.0002,2]
[350076081,1737600657195,-3003.82,0.0002,2]
[350076082,1737600657207,-518.86879661,0.0002,2]
[350076083,1737600657216,-587.22,0.0002,2]
[350076084,1737600657227,-500.0,0.0002,2]
[350076085,1737600657237,-1434.82,0.0002,2]
[350076086,1737600657246,-500.0,0.0002,2]
[350076087,1737600657256,-500.0,0.0002,2]
[350076088,1737600657266,-500.0,0.0002,2]
[350076089,1737600657276,-500.0,0.0002,2]
[350076090,1737600657286,-649.87,0.0002,2]
[350076091,1737600657295,-190.82674631,0.0002,2]
[350076092,1737600657306,-955.03,0.0002,2]
[350076093,1737600657315,-500.0,0.0002,2]
[350076094,1737600657324,-656.2,0.0002,2]
[350076095,1737600657334,-500.0,0.0002,2]
[350076096,1737600657343,-500.0,0.0002,2]
[350076097,1737600657352,-500.0,0.0002,2]
[350076098,1737600657362,-608.59,0.0002,2]
[350076099,1737600657374,-500.0,0.0002,2]
[350076100,1737600657385,-516.71626997,0.0002,2]
[350076101,1737600657396,-500.0,0.0002,2]
[350076102,1737600657407,-500.0,0.0002,2]
[350076103,1737600657417,-621.37,0.0002,2]
[350076104,1737600657428,-644.73,0.0002,2]
[350076105,1737600657439,-633.79,0.0002,2]
[350076106,1737600657450,-500.0,0.0002,2]
[350076107,1737600657459,-1011.87,0.0002,2]
[350076108,1737600657468,-518.92093253,0.0002,2]
[350076109,1737600657478,-629.18,0.0002,2]
[350076110,1737600657487,-500.61,0.0002,2]
[350076111,1737600657496,-1323.99,0.0002,2]
[350076112,1737600657506,-535.52,0.0002,2]
[350076113,1737600657516,-500.0,0.0002,2]
[350076114,1737600657525,-500.0,0.0002,2]
[350076115,1737600657535,-1198.47,0.0002,2]
[350076116,1737600657662,-520.23,0.0002,2]
[350076117,1737600657672,-584.37,0.0002,2]
[350076118,1737600657681,-500.0,0.0002,2]
[350076119,1737600657690,-2097.84,0.0002,2]
[350076120,1737600657700,-1011.49,0.0002,2]
[350076121,1737600657710,-500.0,0.0002,2]
[350076122,1737600657720,-500.0,0.0002,2]
[350076123,1737600657731,-500.0,0.0002,2]
[350076124,1737600657740,-805.84,0.0002,2]
[350076125,1737600657750,-889.12,0.0002,2]
[350076126,1737600657760,-500.0,0.0002,2]
[350076127,1737600657770,-500.0,0.0002,2]
[350076128,1737600657779,-500.0,0.0002,2]
[350076129,1737600657788,-500.0,0.0002,2]
[350076130,1737600657798,-500.0,0.0002,2]
[350076131,1737600657808,-889.54,0.0002,2]
[350076132,1737600657818,-500.0,0.0002,2]
[350076133,1737600657827,-500.0,0.0002,2]
[350076134,1737600657838,-1229.76,0.0002,2]
[350076135,1737600657847,-500.0,0.0002,2]
[350076136,1737600657856,-500.0,0.0002,2]
[350076137,1737600657866,-500.0,0.0002,2]
[350076138,1737600657876,-1077.12,0.0002,2]
[350076139,1737600657886,-1925.86,0.0002,2]
[350076140,1737600657895,-510.67939963,0.0002,2]
[350076141,1737600657904,-500.0,0.0002,2]
[350076142,1737600657913,-2438.76,0.0002,2]
[350076143,1737600657923,-609.65,0.0002,2]
[350076144,1737600657932,-500.0,0.0002,2]
[350076145,1737600657941,-500.0,0.0002,2]
[350076146,1737600657951,-500.0,0.0002,2]
[350076147,1737600657960,-794.13,0.0002,2]
[350076148,1737600657969,-500.0,0.0002,2]
[350076149,1737600657980,-725.8,0.0002,2]
[350076150,1737600657989,-500.0,0.0002,2]
[350076151,1737600657999,-500.0,0.0002,2]
[350076152,1737600658008,-500.0,0.0002,2]
[350076153,1737600658018,-500.0,0.0002,2]
[350076154,1737600658028,-500.0,0.0002,2]
[350076155,1737600658037,-718.94,0.0002,2]
[350076156,1737600658047,-667.12932677,0.0002,2]
[350076157,1737600658056,-500.0,0.0002,2]
[350076158,1737600658065,-1450.85,0.0002,2]
[350076159,1737600658075,-756.12,0.0002,2]
[350076160,1737600658084,-1310.2,0.0002,2]
[350076161,1737600658093,-621.41,0.0002,2]
[350076162,1737600658103,-500.0,0.0002,2]
[350076163,1737600658112,-500.0,0.0002,2]
[350076164,1737600658121,-500.0,0.0002,2]
[350076165,1737600658131,-500.0,0.0002,2]
[350076166,1737600658140,-500.0,0.0002,2]
[350076167,1737600658149,-623.65033216,0.0002,2]
[350076168,1737600658159,-1454.16,0.0002,2]
[350076169,1737600658168,-500.0,0.0002,2]
[350076170,1737600658177,-753.98,0.0002,2]
[350076171,1737600658187,-500.0,0.0002,2]
[350076172,1737600658196,-500.0,0.0002,2]
[350076173,1737600658210,-1414.07,0.0002,2]
[350076174,1737600658219,-1244.98,0.0002,2]
[350076175,1737600658229,-500.0,0.0002,2]
[350076176,1737600658238,-500.0,0.0002,2]
[350076177,1737600658248,-475.2977964,0.0002,2]
[350076178,1737600658257,-500.0,0.0002,2]
[350076179,1737600658267,-500.0,0.0002,2]
[350076180,1737600658276,-1271.07,0.0002,2]
[350076181,1737600658286,-305.49460461,0.0002,2]
[350076182,1737600658296,-500.0,0.0002,2]
[350076183,1737600658305,-500.0,0.0002,2]
[350076184,1737600658314,-973.72,0.0002,2]
[350076185,1737600658323,-500.0,0.0002,2]
[350076186,1737600658332,-648.5,0.0002,2]
[350076187,1737600658341,-513.13971343,0.0002,2]
[350076188,1737600658351,-500.0,0.0002,2]
[350076189,1737600658360,-1248.6,0.0002,2]
[350076190,1737600658369,-500.0,0.0002,2]
[350076191,1737600658380,-500.0,0.0002,2]
[350076192,1737600658389,-242.79621349,0.0002,2]
[350076193,1737600658399,-500.0,0.0002,2]
[350076194,1737600658407,-1247.63,0.0002,2]
[350076195,1737600658417,-625.8,0.0002,2]
[350076196,1737600658425,-500.0,0.0002,2]
[350076197,1737600658434,-500.0,0.0002,2]
[350076198,1737600658444,-834.39,0.0002,2]
[350076199,1737600658453,-883.76,0.0002,2]
[350076200,1737600658463,-569.9,0.0002,2]
[350076201,1737600658474,-304.79261849,0.0002,2]
[350076202,1737600658483,-500.0,0.0002,2]
[350076203,1737600658492,-500.0,0.0002,2]
[350076204,1737600658501,-812.1,0.0002,2]
[350076205,1737600658511,-500.0,0.0002,2]
[350076206,1737600658521,-1627.57,0.0002,2]
[350076207,1737600658530,-1399.38,0.0002,2]
[350076208,1737600658539,-1530.0,0.0002,2]
[350076209,1737600658548,-500.0,0.0002,2]
[350076210,1737600658558,-500.0,0.0002,2]
[350076211,1737600658568,-500.0,0.0002,2]
[350076212,1737600658578,-522.86050382,0.0002,2]
[350076213,1737600658587,-496.37690042,0.0002,2]
[350076214,1737600658595,-194.67026737,0.0002,2]
[350076215,1737600658605,-739.34,0.0002,2]
[350076216,1737600658614,-605.41,0.0002,2]
[350076217,1737600658623,-426.45947766,0.0002,2]
[350076218,1737600658632,-511.43545472,0.0002,2]
[350076219,1737600658641,-500.0,0.0002,2]
[350076220,1737600658651,-500.0,0.0002,2]
[350076221,1737600658660,-500.0,0.0002,2]
[350076222,1737600658671,-614.22,0.0002,2]
[350076223,1737600658680,-500.0,0.0002,2]
[350076224,1737600658689,-514.97824989,0.0002,2]
[350076225,1737600658699,-552.79,0.0002,2]
[350076226,1737600658708,-509.18016791,0.0002,2]
[350076227,1737600658717,-500.0,0.0002,2]
[350076228,1737600658727,-515.49071922,0.0002,2]
[350076229,1737600658736,-500.0,0.0002,2]
[350076230,1737600658746,-500.0,0.0002,2]
[350076231,1737600658755,-500.0,0.0002,2]
[350076232,1737600658764,-500.0,0.0002,2]
[350076233,1737600658773,-500.0,0.0002,2]
[350076234,1737600658782,-500.0,0.0002,2]
[350076235,1737600658791,-1872.77,0.0002,2]
[350076236,1737600658800,-500.0,0.0002,2]
[350076237,1737600658809,-534.05,0.0002,2]
[350076238,1737600658818,-500.0,0.0002,2]
[350076239,1737600658827,-694.8,0.0002,2]
[350076240,1737600658837,-500.0,0.0002,2]
[350076241,1737600658846,-500.0,0.0002,2]
[350076242,1737600658855,-500.0,0.0002,2]
[350076243,1737600658864,-500.0,0.0002,2]
[350076244,1737600658873,-500.0,0.0002,2]
[350076245,1737600658883,-505.5,0.0002,2]
[350076246,1737600658892,-500.0,0.0002,2]
[350076247,1737600658901,-500.11,0.0002,2]
[350076248,1737600658910,-622.49,0.0002,2]
[350076249,1737600658919,-1610.93,0.0002,2]
[350076250,1737600658928,-500.0,0.0002,2]
[350076251,1737600658938,-500.0,0.0002,2]
[350076252,1737600658946,-812.44,0.0002,2]
[350076253,1737600658957,-182.52576903,0.0002,2]
[350076254,1737600659161,-521.55,0.00019452,2]
[350076255,1737600659170,-638.57423097,0.0002,2]
[350076256,1737600659180,-500.0,0.0002,2]
[350076257,1737600659189,-500.0,0.0002,2]
[350076258,1737600659199,-500.0,0.0002,2]
[350076259,1737600659212,-559.33,0.0002,2]
[350076260,1737600659222,-243.62164966,0.0002,2]
[350076261,1737600659231,-758.07,0.0002,2]
[350076262,1737600659240,-500.0,0.0002,2]
[350076263,1737600659250,-263.4705219,0.0002,2]
[350076264,1737600659259,-500.0,0.0002,2]
[350076265,1737600659267,-1332.08,0.0002,2]
[350076266,1737600659278,-1264.83,0.0002,2]
[350076267,1737600659291,-500.0,0.0002,2]
[350076268,1737600659301,-500.0,0.0002,2]
[350076269,1737600659310,-511.67888005,0.0002,2]
[350076270,1737600659319,-997.97469755,0.0002,2]
[350076271,1737600659331,-772.13530245,0.0002,2]
[350076272,1737600659340,-500.0,0.0002,2]
[350076273,1737600659350,-815.21,0.0002,2]
[350076274,1737600659360,-500.0,0.00020018,2]
[350076275,1737600659370,-4564.55469755,0.00020019,2]
[350076276,1737600659385,-10463.26301812,0.00020019,2]
[350076277,1737600659514,-500.0,0.00019452,2]
[350076278,1737600659524,-521.55,0.00019726,2]
[350076279,1737600659534,-500.0,0.00019726,2]
[350076280,1737600659543,-521.55,0.0002,2]
[350076281,1737600659552,-14.29913524,0.0002,2]
[350076282,1737600659575,-485.70086476,0.0002,2]
[350076283,1737600659584,-115.42156237,0.00020019,2]
[350076284,1737600659606,-6637.4838684,0.00020019,2]
[350076285,1737600659617,-1239.24557712,0.00020019,2]
[350076286,1737600659628,-571.97010672,0.00020019,2]
[350076287,1737600659639,-6676.2598296,0.00020019,2]
[350076288,1737600659648,-712.71579404,0.00020038,2]
[350076289,1737600659661,-308.09,0.00020089,2]
[350076290,1737600659672,-712.71579404,0.00020107,2]
[350076291,1737600659681,-712.71579404,0.00020176,2]
[350076292,1737600659691,-712.71579404,0.00020245,2]
[350076293,1737600659700,-150.0,0.00020273,2]
[350076294,1737600659710,-500.0,0.00020273,14]
[350076295,1737600659843,-500.0,0.00020273,2]
[350076296,1737600659853,-500.0,0.00020273,2]
[350076297,1737600659863,-500.0,0.00020273,2]
[350076298,1737600659873,-500.0,0.00020273,2]
[350076299,1737600659882,-500.0,0.00020273,2]
[350076300,1737600659892,-500.0,0.00020273,2]
[350076301,1737600659901,-520.07675529,0.00020273,2]
[350076302,1737600659911,-500.0,0.00020273,2]
[350076303,1737600659920,-500.0,0.00020273,2]
[350076304,1737600659930,-500.0,0.00020273,2]
[350076305,1737600659939,-500.0,0.00020273,2]
[350076306,1737600659952,-492.4879861,0.00020273,2]
[350076307,1737600659962,-500.0,0.00020273,2]
[350076308,1737600659972,-500.0,0.00020273,2]
[350076309,1737600659981,-500.0,0.00020273,2]
[350076310,1737600659991,-505.23846111,0.00020273,2]
[350076311,1737600660001,-500.0,0.00020273,2]
[350076312,1737600660010,-500.0,0.00020273,2]
[350076313,1737600660019,-495.22519336,0.00020273,2]
[350076314,1737600660028,-500.0,0.00020273,2]
[350076315,1737600660038,-516.67285393,0.00020273,2]
[350076316,1737600660047,-517.92068094,0.00020273,2]
[350076317,1737600660057,-500.0,0.00020273,2]
[350076318,1737600660067,-500.0,0.00020273,2]
[350076319,1737600660077,-385.707963,0.00020273,2]
[350076320,1737600660086,-436.582676,0.00020273,2]
[350076321,1737600660096,-500.0,0.00020273,2]
[350076322,1737600660105,-500.0,0.00020273,2]
[350076323,1737600660115,-500.0,0.00020273,2]
[350076324,1737600660130,-173.42255581,0.00020273,2]
[350076325,1737600660140,-500.0,0.00020273,2]
[350076326,1737600660150,-500.0,0.00020273,2]
[350076327,1737600660159,-500.0,0.00020273,2]
[350076328,1737600660169,-500.0,0.00020273,2]
[350076329,1737600660179,-500.0,0.00020273,2]
[350076330,1737600660188,-500.0,0.00020273,2]
[350076331,1737600660198,-500.0,0.00020273,2]
[350076332,1737600660212,-500.0,0.00020273,2]
[350076333,1737600660222,-500.0,0.00020273,2]
[350076334,1737600660232,-500.0,0.00020273,2]
[350076335,1737600660243,-560.52,0.00020273,2]
[350076336,1737600660253,-500.0,0.00020273,2]
[350076337,1737600660263,-500.0,0.00020273,2]
[350076338,1737600660272,-500.0,0.00020273,2]
[350076339,1737600660284,-500.0,0.00020273,2]
[350076340,1737600660293,-500.0,0.00020273,2]
[350076341,1737600660303,-500.0,0.00020273,2]
[350076342,1737600660312,-500.0,0.00020273,2]
[350076343,1737600660322,-500.0,0.00020273,2]
[350076344,1737600660332,-500.0,0.00020273,2]
[350076345,1737600660342,-500.0,0.00020273,2]
[350076346,1737600660355,-500.0,0.00020273,2]
[350076347,1737600660366,-722.11,0.00020273,2]
[350076348,1737600660375,-500.0,0.00020273,2]
[350076349,1737600660384,-500.0,0.00020273,2]
[350076350,1737600660393,-500.0,0.00020273,2]
[350076351,1737600660403,-500.0,0.00020273,2]
[350076352,1737600660412,-500.0,0.00020273,2]
[350076353,1737600660421,-500.0,0.00020273,2]
[350076354,1737600660431,-500.0,0.00020273,2]
[350076355,1737600660440,-500.0,0.00020273,2]
[350076356,1737600660449,-500.0,0.00020273,2]
[350076357,1737600660459,-500.0,0.00020273,2]
[350076358,1737600660468,-500.0,0.00020273,2]
[350076359,1737600660478,-500.0,0.00020273,2]
[350076360,1737600660487,-500.0,0.00020273,2]
[350076361,1737600660496,-500.0,0.00020273,2]
[350076362,1737600660506,-500.0,0.00020273,2]
[350076363,1737600660515,-514.99206385,0.00020273,2]
[350076364,1737600660524,-500.0,0.00020273,2]
[350076365,1737600660533,-500.0,0.00020273,2]
[350076366,1737600660543,-500.0,0.00020273,2]
[350076367,1737600660552,-500.0,0.00020273,2]
[350076368,1737600660561,-500.0,0.00020273,2]
[350076369,1737600660571,-519.1,0.00020273,2]
[350076370,1737600660580,-500.0,0.00020273,2]
[350076371,1737600660590,-321.39939271,0.00020273,2]
[350076372,1737600660599,-500.0,0.00020273,2]
[350076373,1737600660608,-500.0,0.00020273,2]
[350076374,1737600660618,-500.0,0.00020273,2]
[350076375,1737600660627,-500.0,0.00020273,2]
[350076376,1737600660636,-500.0,0.00020273,2]
[350076377,1737600660646,-500.0,0.00020273,2]
[350076378,1737600660655,-500.0,0.00020273,2]
[350076379,1737600660665,-515.07873659,0.00020273,2]
[350076380,1737600660674,-500.0,0.00020273,2]
[350076381,1737600660683,-527.19,0.00020273,2]
[350076382,1737600660692,-500.0,0.00020273,2]
[350076383,1737600660702,-500.0,0.00020273,2]
[350076384,1737600660710,-500.0,0.00020273,2]
[350076385,1737600660719,-500.0,0.00020273,2]
[350076386,1737600660731,-500.0,0.00020273,2]
[350076387,1737600660740,-500.0,0.00020273,2]
[350076388,1737600660749,-500.0,0.00020273,2]
[350076389,1737600660758,-500.0,0.00020273,2]
[350076390,1737600660767,-500.0,0.00020273,2]
[350076391,1737600660776,-500.0,0.00020273,2]
[350076392,1737600660786,-500.0,0.00020273,2]
[350076393,1737600660795,-500.0,0.00020273,2]
[350076394,1737600660803,-500.0,0.00020273,2]
[350076395,1737600660812,-500.0,0.00020273,2]
[350076396,1737600660822,-500.0,0.00020273,2]
[350076397,1737600660831,-500.0,0.00020273,2]
[350076398,1737600660840,-533.01,0.00020273,2]
[350076399,1737600660849,-500.0,0.00020273,2]
[350076400,1737600660859,-585.97224379,0.00020273,2]
[350076401,1737600660868,-500.0,0.00020273,2]
[350076402,1737600660877,-500.0,0.00020273,2]
[350076403,1737600660886,-500.0,0.00020273,2]
[350076404,1737600660895,-500.0,0.00020273,2]
[350076405,1737600660904,-500.0,0.00020273,2]
[350076406,1737600660913,-500.0,0.00020273,2]
[350076407,1737600660923,-500.0,0.00020273,2]
[350076408,1737600660932,-577.09,0.00020273,2]
[350076409,1737600660941,-500.0,0.00020273,2]
[350076410,1737600660951,-503.7,0.00020273,2]
[350076411,1737600660960,-500.0,0.00020273,2]
[350076412,1737600660970,-500.0,0.00020273,2]
[350076413,1737600660982,-500.0,0.00020273,2]
[350076414,1737600660991,-531.35,0.00020273,2]
[350076415,1737600661000,-500.0,0.00020273,2]
[350076416,1737600661010,-659.11,0.00020273,2]
[350076417,1737600661019,-500.0,0.00020273,2]
[350076418,1737600661029,-500.0,0.00020273,2]
[350076419,1737600661038,-500.0,0.00020273,2]
[350076420,1737600661048,-586.20559456,0.00020273,2]
[350076421,1737600661057,-500.0,0.00020273,2]
[350076422,1737600661067,-315.36255697,0.00020273,2]
[350076423,1737600661076,-500.0,0.00020273,2]
[350076424,1737600661085,-500.0,0.00020273,2]
[350076425,1737600661095,-500.0,0.00020273,2]
[350076426,1737600661104,-500.0,0.00020273,2]
[350076427,1737600661113,-586.25,0.00020273,2]
[350076428,1737600661123,-278.59846268,0.00020273,2]
[350076429,1737600661132,-500.0,0.00020273,2]
[350076430,1737600661141,-500.0,0.00020273,2]
[350076431,1737600661151,-500.0,0.00020273,2]
[350076432,1737600661160,-500.0,0.00020273,2]
[350076433,1737600661169,-500.0,0.00020273,2]
[350076434,1737600661179,-500.0,0.00020273,2]
[350076435,1737600661188,-500.0,0.00020273,2]
[350076436,1737600661198,-500.0,0.00020273,2]
[350076437,1737600661211,-500.0,0.00020273,2]
[350076438,1737600661223,-500.0,0.00020273,2]
[350076439,1737600661241,-638.93,0.00020273,2]
[350076440,1737600661259,-500.0,0.00020273,2]
[350076441,1737600661269,-3003.82,0.00020273,2]
[350076442,1737600661279,-587.22,0.00020273,2]
[350076443,1737600661289,-500.0,0.00020273,2]
[350076444,1737600661299,-1434.82,0.00020273,2]
[350076445,1737600661308,-500.0,0.00020273,2]
[350076446,1737600661318,-500.0,0.00020273,2]
[350076447,1737600661327,-500.0,0.00020273,2]
[350076448,1737600661338,-500.0,0.00020273,2]
[350076449,1737600661348,-649.87,0.00020273,2]
[350076450,1737600661358,-955.03,0.00020273,2]
[350076451,1737600661367,-656.2,0.00020273,2]
[350076452,1737600661377,-215.96925731,0.00020273,2]
[350076453,1737600661392,-500.0,0.00020273,2]
[350076454,1737600661403,-500.0,0.00020273,2]
[350076455,1737600661413,-608.59,0.00020273,2]
[350076456,1737600661423,-500.0,0.00020273,2]
[350076457,1737600661434,-621.37,0.00020273,2]
[350076458,1737600661445,-644.73,0.00020273,2]
[350076459,1737600661455,-633.79,0.00020273,2]
[350076460,1737600661464,-500.0,0.00020273,2]
[350076461,1737600661474,-1011.87,0.00020273,2]
[350076462,1737600661485,-629.18,0.00020273,2]
[350076463,1737600661497,-500.61,0.00020273,2]
[350076464,1737600661512,-1323.99,0.00020273,2]
[350076465,1737600661521,-272.94142642,0.00020273,2]
[350076466,1737600661564,-262.57857358,0.00020273,2]
[350076467,1737600661575,-500.0,0.00020273,2]
[350076468,1737600661586,-500.0,0.00020273,2]
[350076469,1737600661596,-1198.47,0.00020273,2]
[350076470,1737600661607,-520.23,0.00020273,2]
[350076471,1737600661616,-584.37,0.00020273,2]
[350076472,1737600661626,-500.0,0.00020273,2]
[350076473,1737600661636,-2097.84,0.00020273,2]
[350076474,1737600661646,-1011.49,0.00020273,2]
[350076475,1737600661656,-500.0,0.00020273,2]
[350076476,1737600661665,-564.85743638,0.00020273,2]
[350076477,1737600661675,-500.0,0.00020273,2]
[350076478,1737600661684,-805.84,0.00020273,2]
[350076479,1737600661694,-500.0,0.00020273,2]
[350076480,1737600661704,-889.12,0.00020273,2]
[350076481,1737600661713,-500.0,0.00020273,2]
[350076482,1737600661723,-500.0,0.00020273,2]
[350076483,1737600661734,-500.0,0.00020273,2]
[350076484,1737600661744,-218.63424841,0.00020273,2]
[350076485,1737600661753,-889.54,0.00020273,2]
[350076486,1737600661763,-500.0,0.00020273,2]
[350076487,1737600661773,-500.0,0.00020273,2]
[350076488,1737600661783,-1229.76,0.00020273,2]
[350076489,1737600661792,-500.0,0.00020273,2]
[350076490,1737600661801,-500.0,0.00020273,2]
[350076491,1737600661811,-500.0,0.00020273,2]
[350076492,1737600661820,-1077.12,0.00020273,2]
[350076493,1737600661830,-1925.86,0.00020273,2]
[350076494,1737600661839,-500.0,0.00020273,2]
[350076495,1737600661850,-2438.76,0.00020273,2]
[350076496,1737600661859,-609.65,0.00020273,2]
[350076497,1737600661869,-500.0,0.00020273,2]
[350076498,1737600661879,-515.66721407,0.00020273,2]
[350076499,1737600661888,-500.0,0.00020273,2]
[350076500,1737600661898,-794.13,0.00020273,2]
[350076501,1737600661907,-500.0,0.00020273,2]
[350076502,1737600661916,-725.8,0.00020273,2]
[350076503,1737600661926,-500.0,0.00020273,2]
[350076504,1737600661935,-500.0,0.00020273,2]
[350076505,1737600661945,-500.0,0.00020273,2]
[350076506,1737600661954,-500.0,0.00020273,2]
[350076507,1737600661963,-500.0,0.00020273,2]
[350076508,1737600661973,-718.94,0.00020273,2]
[350076509,1737600661984,-500.0,0.00020273,2]
[350076510,1737600661993,-1450.85,0.00020273,2]
[350076511,1737600662003,-756.12,0.00020273,2]
[350076512,1737600662013,-1310.2,0.00020273,2]
[350076513,1737600662022,-621.41,0.00020273,2]
[350076514,1737600662032,-500.0,0.00020273,2]
[350076515,1737600662042,-500.0,0.00020273,2]
[350076516,1737600662052,-500.0,0.00020273,2]
[350076517,1737600662061,-500.0,0.00020273,2]
[350076518,1737600662185,-500.0,0.00020273,2]
[350076519,1737600662195,-1454.16,0.00020273,2]
[350076520,1737600662207,-500.0,0.00020273,2]
[350076521,1737600662217,-753.98,0.00020273,2]
[350076522,1737600662228,-500.0,0.00020273,2]
[350076523,1737600662238,-500.0,0.00020273,2]
[350076524,1737600662249,-1414.07,0.00020273,2]